bitfinex-derivatives/quotes_ETHF0:USTF0_20250330
["timestamp","ask_amount","ask_price","bid_price","bid_amount"]
[1743372205178,5.72271441,1793.2,1792.7,0.5584]
[1743372205484,3.2078,1793.0,1792.6,3.2078]
[1743372205682,1.11594,1792.7,1792.6,3.2078]
[1743372206076,1.11632,1792.1,1792.0,3.2078]
[1743372206276,1.11621,1792.3,1792.0,4.32416]
[1743372206487,1.4685,1792.6,1792.2,3.2078]
[1743372206783,1.11616,1792.4,1792.2,3.2078]
[1743372207084,1.11616,1792.4,1792.3,1.4072]
[1743372207287,1.11641,1792.0,1791.8,3.2078]
[1743372207488,1.4685,1792.3,1791.8,3.2078]
[1743372207781,1.11644,1791.9,1791.8,3.2078]
[1743372208885,1.11663,1791.6,1791.5,0.02096904]
[1743372209386,3.61663,1791.6,1791.5,0.02096904]
[1743372209584,1.11663,1791.6,1791.5,0.02096904]
[1743372209786,1.11694,1791.1,1791.0,3.2078]
[1743372209973,1.11658,1791.7,1791.0,3.2078]
[1743372210178,1.11648,1791.9,1791.6,3.2078]
[1743372210474,3.2078,1791.7,1791.1,4.6009]
[1743372210680,1.11688,1791.2,1791.1,4.6009]
[1743372210882,1.11688,1791.2,1791.1,3.2078]
[1743372212375,8.735,1791.6,1791.1,3.2078]
[1743372212376,3.2078,1791.9,1791.1,5.7078]
[1743372212579,0.00835189,1792.1,1791.5,3.2078]
[1743372212580,4.522,1792.0,1791.5,3.2078]
[1743372212979,0.00835189,1792.1,1791.9,3.2078]
[1743372213187,5.32743441,1792.3,1792.0,5.9298]
[1743372213390,4.21121441,1792.3,1792.1,3.2078]
[1743372213580,1.11625,1792.2,1792.1,3.2078]
[1743372213780,1.3779,1792.2,1792.1,3.2078]
[1743372213981,4.21121441,1792.3,1792.1,4.3241]
[1743372214181,4.21121441,1792.3,1792.2,1.11625]
[1743372214380,4.21121441,1792.3,1792.1,3.2078]
[1743372214589,5.32742441,1792.3,1792.1,3.2078]
[1743372215083,4.21121441,1792.3,1792.1,3.2078]
[1743372215284,5.32740441,1792.3,1792.1,3.2078]
[1743372216289,4.21121441,1792.3,1792.1,3.7662]
[1743372216492,1.12451189,1792.4,1792.1,3.7662]
[1743372216691,1.12451189,1792.4,1792.1,4.88251]
[1743372217292,1.11624,1792.3,1792.1,3.2078]
[1743372217483,1.11625,1792.2,1792.1,3.2078]
[1743372217678,0.00835189,1792.4,1792.1,3.2078]
[1743372217987,1.11625,1792.2,1792.1,3.2078]
[1743372218786,1.11632,1792.1,1792.0,0.00835189]
[1743372220296,1.11632,1792.1,1792.0,3.21615189]
[1743372220986,1.11632,1792.1,1790.2,0.5563]
[1743372220987,2.79095,1792.0,1790.8,2.79269]
[1743372221188,1.11663,1791.6,1791.5,3.2078]
[1743372222989,1.466,1791.8,1791.5,3.2078]
[1743372223194,3.9227,1792.3,1791.7,3.2078]
[1743372223491,1.1164,1792.0,1791.9,3.2078]
[1743372223691,1.11636,1792.1,1791.9,3.2078]
[1743372223898,1.1163,1792.2,1791.9,3.2078]
[1743372224097,0.00835189,1792.4,1792.1,3.2078]
[1743372224299,1.11625,1792.2,1792.1,3.2078]
[1743372224794,0.00835189,1792.4,1792.1,3.2078]
[1743372224999,0.00835189,1792.4,1792.2,1.11622]
[1743372225297,0.00835189,1792.4,1792.3,4.32399]
[1743372225595,0.00835189,1792.4,1792.3,4.88239]
[1743372225897,4.21121441,1792.7,1792.6,1.11601]
[1743372226091,0.5135663,1792.7,1792.6,4.32381]
[1743372226395,1.11589,1792.8,1792.6,7.7218]
[1743372226699,1.11591,1792.8,1792.6,7.7218]
[1743372226895,1.11592,1792.8,1792.6,7.7218]
[1743372227093,1.11594,1792.7,1792.6,3.2078]
[1743372227397,1.11601,1792.6,1792.5,0.00835189]
[1743372229097,2.58638,1792.7,1792.5,0.00835189]
[1743372229290,1.11591,1792.8,1792.6,3.2078]
[1743372229493,0.00835189,1792.9,1792.6,3.2078]
[1743372229794,1.11591,1792.8,1792.6,7.7058]
[1743372229994,1.11591,1792.8,1792.7,1.3886]
[1743372230892,1.12421189,1792.9,1792.7,1.3886]
[1743372231091,1.12421189,1792.9,1792.8,3.2078]
[1743372231092,0.00835189,1792.9,1792.8,3.2078]
[1743372231294,0.00835189,1792.9,1792.8,4.32368]
[1743372232500,1.11564,1793.2,1792.8,12.11421366]
[1743372232699,1.11564,1793.2,1793.1,3.2078]
[1743372233395,1.11576,1793.0,1792.9,1.4888]
[1743372233599,1.11588,1792.8,1792.7,7.6878]
[1743372233800,1.11586,1792.9,1792.8,1.4888]
[1743372235901,1.4945,1793.1,1792.8,1.4888]
[1743372235902,0.00835189,1793.3,1792.8,11.78505335]
[1743372236109,0.00835189,1793.3,1793.1,4.32345]
[1743372236301,0.00835189,1793.3,1793.2,1.4003]
[1743372237396,0.00835189,1793.3,1793.2,2.51593]
[1743372237598,0.00835189,1793.3,1793.2,1.4003]
[1743372237802,0.00835189,1793.3,1793.2,2.51593]
[1743372238005,0.00835189,1793.3,1793.2,5.01593]
[1743372238207,0.00835189,1793.3,1793.2,2.51593]
[1743372238505,1.12392189,1793.3,1793.2,1.4003]
[1743372238808,1.12392189,1793.3,1793.2,5.8883]
[1743372239200,0.00835189,1793.3,1793.2,5.8883]
[1743372239401,1.12392189,1793.3,1793.2,5.8883]
[1743372239705,0.00835189,1793.3,1793.2,7.00393]
[1743372240103,0.00835189,1793.3,1793.2,9.50393]
[1743372240304,0.00835189,1793.3,1793.2,7.00393]
[1743372240807,0.00835189,1793.3,1793.2,9.50393]
[1743372241506,0.00835189,1793.3,1793.2,5.01593]
[1743372241704,0.00835189,1793.3,1793.2,2.51593]
[1743372241900,0.00835189,1793.3,1793.1,3.2078]
[1743372242106,1.11563,1793.2,1793.1,3.2078]
[1743372242303,2.55813,1793.2,1793.1,3.2078]
[1743372243413,1.4425,1793.2,1793.1,4.32349]
[1743372243606,1.4425,1793.2,1793.1,3.2078]
[1743372243806,0.00835189,1793.3,1793.2,1.11563]
[1743372244006,0.00835189,1793.3,1793.2,2.55563]
[1743372247016,0.00835189,1793.3,1793.2,5.05563]
[1743372247212,0.00835189,1793.3,1793.2,12.29946122]
[1743372248416,6.33747759,1793.8,1793.7,1.11532]
[1743372248619,6.33747759,1793.8,1793.7,8.80612]
[1743372249315,6.33747759,1793.8,1793.7,16.12013823]
[1743372249913,0.00835189,1793.9,1793.8,1.11526]
[1743372250113,0.00835189,1793.9,1793.8,2.54116]
[1743372250320,0.00835189,1793.9,1793.8,9.72926753]
[1743372250818,0.00835189,1793.9,1793.8,14.20826753]
[1743372251015,0.00835189,1793.9,1793.8,9.72926753]
[1743372251208,0.00835189,1793.9,1793.8,14.20826753]
[1743372252122,0.00835189,1793.9,1793.8,23.23615109]
[1743372252413,6.33747759,1794.3,1793.8,15.14189109]
[1743372252614,1.11522,1793.9,1793.7,3.2078]
[1743372252820,1.455,1793.8,1793.7,3.7654]
[1743372253012,3.2078,1794.2,1793.7,3.7654]
[1743372253013,1.11518,1794.0,1793.7,4.32312]
[1743372253215,1.1152,1793.9,1793.7,7.6918]
[1743372253414,1.455,1793.8,1793.7,8.80712]
[1743372253616,1.455,1793.8,1793.7,10.31842]
[1743372253814,0.00835189,1794.0,1793.9,1.1152]
[1743372254014,1.49265189,1794.0,1793.9,3.2078]
[1743372254622,2.60778189,1794.0,1793.9,3.2078]
[1743372254817,1.49265189,1794.0,1793.8,1.11522]
[1743372255016,1.49265189,1794.0,1793.9,1.1152]
[1743372255215,0.00835189,1794.0,1793.9,4.323]
[1743372255422,0.00835189,1794.0,1793.9,11.48803392]
[1743372255719,0.00835189,1794.0,1793.9,4.323]
[1743372256017,0.00835189,1794.0,1793.9,12.07838346]
[1743372256718,0.00835189,1794.0,1793.9,21.87866396]
[1743372257026,0.00835189,1794.0,1793.9,73.39366396]
[1743372257609,0.00835189,1794.0,1793.9,69.52668346]
[1743372258221,0.00835189,1794.0,1793.9,72.02668346]
[1743372258423,1.4608,1794.6,1794.5,1.11482]
[1743372258623,1.4608,1794.6,1794.5,5.57682]
[1743372259124,7.07657759,1794.8,1794.6,1.11476]
[1743372259321,1.4608,1794.7,1794.6,1.11476]
[1743372259619,1.4608,1794.7,1794.5,0.00835189]
[1743372259620,1.11476,1794.6,1794.5,0.00835189]
[1743372259816,2.57555,1794.7,1794.5,0.00835189]
[1743372260022,2.57552,1794.7,1794.5,0.00835189]
[1743372260214,1.4608,1794.7,1794.5,0.00835189]
[1743372260411,1.4608,1794.7,1794.6,1.11476]
[1743372260622,1.4608,1794.7,1794.6,7.00336]
[1743372263017,1.4608,1794.7,1794.6,10.21116]
[1743372263717,0.00835189,1794.9,1794.8,1.11464]
[1743372263916,1.4357,1794.8,1794.7,1.11465]
[1743372264922,7.1435,1794.8,1794.5,0.00835189]
[1743372265221,1.11476,1794.6,1794.5,0.00835189]
[1743372265522,1.11474,1794.7,1794.5,0.00835189]
[1743372265725,1.4357,1794.6,1794.5,0.00835189]
[1743372268122,1.4357,1794.6,1794.5,1.12317189]
[1743372268319,1.4357,1794.6,1794.5,0.00835189]
[1743372269622,2.55046,1794.6,1794.5,0.00835189]
[1743372269824,1.115,1794.3,1794.0,5.54909]
[1743372270023,4.5998,1794.2,1794.0,5.54909]
[1743372270321,4.5998,1794.2,1794.1,1.11507]
[1743372270514,4.5998,1794.2,1794.0,4.434]
[1743372270719,1.392,1794.2,1794.1,1.11507]
[1743372271125,1.392,1794.2,1794.1,2.58407]
[1743372271626,1.392,1794.2,1794.1,1.11507]
[1743372272229,1.392,1794.2,1794.0,4.434]
[1743372272521,1.392,1794.2,1794.1,1.11507]
[1743372272721,1.392,1794.2,1794.0,4.434]
[1743372272722,1.392,1794.2,1794.0,1.11512]
[1743372273023,1.11513,1794.0,1793.9,0.06775189]
[1743372273227,1.11526,1793.8,1793.7,0.5576]
[1743372273424,1.11534,1793.7,1793.4,1.11546]
[1743372273623,1.4671,1793.7,1793.3,51.495]
[1743372273825,1.4671,1793.7,1793.5,1.11539]
[1743372274122,4.6749,1793.7,1793.6,1.11538]
[1743372274323,4.6749,1793.7,1793.6,5.54438]
[1743372274918,1.4671,1793.7,1793.6,5.54438]
[1743372275930,6.33355733,1793.8,1793.7,1.11532]
[1743372276128,7.77195733,1793.8,1793.7,2.48922]
[1743372276325,7.77195733,1793.8,1793.7,3.04682]
[1743372276635,7.77195733,1793.8,1793.7,2.48922]
[1743372276829,7.77195733,1793.8,1793.7,3.04682]
[1743372277035,6.33355733,1793.8,1793.7,1.67292]
[1743372277228,1.44675189,1793.8,1793.7,1.67292]
[1743372279124,1.44675189,1793.8,1793.6,8.75216]
[1743372279428,7.77195733,1793.8,1793.7,1.67292]
[1743372279629,7.77195733,1793.8,1793.7,0.5576]
[1743372279931,8.88721733,1793.8,1793.6,3.2078]
[1743372280144,8.88724733,1793.8,1793.6,3.2078]
[1743372280624,7.77195733,1793.8,1793.7,1.11532]
[1743372281525,11.85814707,1793.8,1793.7,5.50532]
[1743372281736,11.85814707,1793.8,1793.7,6.95752]
[1743372284833,10.41974707,1793.8,1793.7,6.95752]
[1743372285135,6.71374707,1793.8,1793.7,9.45752]
[1743372285443,4.43194707,1793.8,1793.7,23.11942044]
[1743372286143,1.4686,1794.4,1794.3,1.11495]
[1743372286335,1.4686,1794.4,1794.3,5.48195]
[1743372289051,9.93827864,1794.4,1794.3,5.48195]
[1743372291044,9.93827864,1794.4,1794.0,3.2078]
[1743372291244,1.4686,1794.4,1794.2,1.11501]
[1743372291540,1.4686,1794.4,1794.0,3.2078]
[1743372291541,4.6764,1794.4,1794.0,3.2078]
[1743372291746,4.32284,1794.2,1793.9,5.44918]
[1743372292047,1.11522,1793.9,1793.6,1.11534]
[1743372292248,1.5184,1793.8,1793.7,1.11532]
[1743372292748,4.7262,1793.8,1793.6,5.44934]
[1743372293042,4.7262,1793.8,1793.4,2.03915189]
[1743372293345,4.7262,1793.8,1793.6,1.11537]
[1743372293544,4.7262,1793.8,1793.7,1.11532]
[1743372293944,1.5184,1793.8,1793.7,1.11532]
[1743372295357,1.5184,1793.8,1793.7,5.43432]
[1743372296150,1.5184,1793.8,1793.7,5.99192]
[1743372296458,1.5184,1793.8,1793.7,5.43432]
[1743372297755,1.5184,1793.8,1793.7,5.99192]
[1743372298358,1.5184,1793.8,1793.7,5.43432]
[1743372298954,3.2078,1794.1,1793.8,1.11526]
[1743372299149,1.3781,1794.3,1794.2,1.11501]
[1743372300258,3.2078,1794.4,1794.3,1.11495]
[1743372300561,58.71557215,1794.5,1794.3,5.40392]
[1743372300855,58.71557215,1794.5,1793.6,4.302]
[1743372300856,1.11522,1793.9,1793.6,4.302]
[1743372301049,2.1482,1793.8,1793.6,4.302]
[1743372301249,3.2078,1793.7,1793.2,1.11561]
[1743372301449,3.2078,1793.5,1793.0,4.306]
[1743372301753,3.2078,1793.5,1792.8,0.5576]
[1743372301754,4.6151,1793.4,1793.1,1.11565]
[1743372301954,5.73063,1793.4,1793.1,4.308]
[1743372302162,3.2078,1793.2,1793.1,4.308]
[1743372302662,3.2078,1793.2,1793.1,5.42369]
[1743372302861,3.2078,1793.2,1793.1,4.308]
[1743372303057,4.658,1793.2,1793.1,4.308]
[1743372303255,4.658,1793.2,1793.1,5.42369]
[1743372303454,4.658,1793.2,1793.1,4.308]
[1743372304060,3.2078,1793.2,1793.1,4.308]
[1743372304259,0.00835189,1793.3,1793.2,1.11563]
[1743372304460,0.00835189,1793.3,1793.2,2.54543]
[1743372305460,0.00835189,1793.3,1793.2,6.83643]
[1743372305661,1.51785189,1793.3,1793.2,4.294]
[1743372305862,1.51785189,1793.3,1793.2,5.40963]
[1743372307064,1.51785189,1793.3,1793.2,1.11563]
[1743372307363,1.51785189,1793.3,1793.2,5.40063]
[1743372308062,1.51785189,1793.3,1793.2,4.285]
[1743372308365,9.98089231,1793.3,1793.2,4.285]
[1743372308553,12.48089231,1793.3,1793.0,0.00835189]
[1743372308757,3.2078,1793.1,1792.6,4.28]
[1743372308956,1.5166,1793.0,1792.9,1.11582]
[1743372310554,1.5166,1793.0,1792.8,1.12418189]
[1743372310757,1.5166,1793.0,1792.8,5.39918189]
[1743372311059,2.2022,1793.0,1792.8,1.12420189]
[1743372311459,2.2022,1793.0,1792.8,0.00835189]
[1743372311766,2.2022,1793.0,1792.9,1.11582]
[1743372312063,10.57880053,1793.1,1793.0,1.11576]
[1743372312258,10.57880053,1793.1,1793.0,5.38876]
[1743372313960,8.46096813,1793.1,1793.0,5.38876]
[1743372314365,9.95546813,1793.1,1793.0,5.38876]
[1743372316167,9.95546813,1793.1,1793.0,5.94716]
[1743372316367,9.95546813,1793.1,1793.0,5.38876]
[1743372316967,9.95546813,1793.1,1793.0,5.36076]
[1743372317168,9.95546813,1793.1,1793.0,5.91916]
[1743372317370,9.95546813,1793.1,1793.0,5.36076]
[1743372317762,9.95546813,1793.1,1793.0,5.91916]
[1743372318268,9.95546813,1793.1,1793.0,5.36076]
[1743372318465,9.95546813,1793.1,1793.0,5.91916]
[1743372318663,9.95546813,1793.1,1793.0,5.36076]
[1743372320365,1.11582,1792.9,1792.8,0.00835189]
[1743372320562,1.11618,1792.4,1791.9,3.2078]
[1743372320757,3.2078,1792.2,1791.9,5.3544]
[1743372320960,1.3927,1792.1,1792.0,1.11638]
[1743372321157,1.3927,1792.1,1791.8,4.7964]
[1743372321364,1.3927,1792.1,1792.0,1.11638]
[1743372321568,3.2078,1792.4,1792.3,1.11619]
[1743372321764,3.2078,1792.4,1792.3,5.35319]
[1743372321765,1.3927,1792.4,1792.3,5.35319]
[1743372322768,12.70362281,1792.5,1792.4,1.11613]
[1743372322967,12.70362281,1792.5,1792.4,5.81483]
[1743372323172,12.70362281,1792.5,1792.4,10.04983]
[1743372323775,12.70362281,1792.5,1792.4,6.84203]
[1743372324070,12.70362281,1792.5,1792.4,2.60703]
[1743372324275,12.70362281,1792.5,1792.4,6.83903]
[1743372325672,14.11032281,1792.5,1792.4,1.11613]
[1743372325870,15.91142281,1792.5,1792.4,1.11613]
[1743372326070,3.21615189,1792.5,1792.4,1.11613]
[1743372326372,6.34067622,1792.8,1792.7,1.11594]
[1743372326674,6.34067622,1792.8,1792.7,8.57074]
[1743372326675,6.32397244,1792.8,1792.7,8.57074]
[1743372326870,6.32397244,1792.8,1792.7,15.80248554]
[1743372327269,6.32397244,1792.8,1792.7,8.56974]
[1743372327468,6.32397244,1792.8,1792.7,8.56874]
[1743372327670,1.39925189,1792.9,1792.7,3.2078]
[1743372327874,2.79015189,1792.9,1792.7,1.1159]
[1743372328072,2.79015189,1792.9,1792.7,1.11592]
[1743372328473,5.99795189,1792.9,1792.7,1.11592]
[1743372329672,5.99795189,1792.9,1792.6,4.246]
[1743372329870,5.99795189,1792.9,1792.6,5.36198]
[1743372330071,5.99795189,1792.9,1792.3,3.7662]
[1743372330373,5.99795189,1792.9,1792.4,5.34811]
[1743372330576,9.57013496,1792.8,1792.4,5.34811]
[1743372330873,8.45423496,1792.8,1792.7,1.11594]
[1743372331076,8.45423496,1792.8,1792.7,5.35294]
[1743372331679,9.85503496,1792.8,1792.7,5.35294]
[1743372332380,8.45423496,1792.8,1792.7,5.35294]
[1743372332579,0.69595189,1792.9,1792.8,1.11588]
[1743372332779,0.69595189,1792.9,1792.8,2.54588]
[1743372332978,2.13895189,1792.9,1792.8,2.54588]
[1743372334178,2.13895189,1792.9,1792.8,1.11588]
[1743372335169,2.13895189,1792.9,1792.8,2.54588]
[1743372337378,0.00835189,1792.9,1792.8,2.54588]
[1743372337576,0.00835189,1792.9,1792.8,5.04588]
[1743372337577,8.46258685,1792.9,1792.8,5.04588]
[1743372337777,8.46258685,1792.9,1792.8,69.85661515]
[1743372337778,3.49686685,1792.9,1792.8,69.85661515]
[1743372337973,3.49686685,1792.9,1792.8,69.95907797]
[1743372338375,10.56779371,1793.0,1792.8,68.84319797]
[1743372338682,10.56475007,1793.7,1793.4,3.2078]
[1743372338980,7.79634007,1793.7,1793.6,4.32318]
[1743372339185,12.99651942,1793.9,1793.8,1.11526]
[1743372339384,10.48123942,1793.9,1793.8,55.95852282]
[1743372339685,10.48123942,1793.9,1793.8,69.30643706]
[1743372339984,1.3809,1794.4,1794.3,1.11495]
[1743372340175,6.9577,1794.4,1794.3,5.35595]
[1743372340373,1.3809,1794.4,1794.3,12.70896152]
[1743372343588,0.00835189,1794.5,1794.4,1.11489]
[1743372343790,15.58515189,1794.5,1794.4,1.11489]
[1743372343982,15.58515189,1794.5,1794.4,4.32269]
[1743372344187,0.00835189,1794.5,1794.4,11.66910174]
[1743372344593,15.58515189,1794.5,1794.4,11.66910174]
[1743372344889,15.58515189,1794.5,1794.4,5.34089]
[1743372345886,2.50835189,1794.5,1793.9,4.226]
[1743372346191,9.5044,1794.4,1794.2,1.11496]
[1743372346594,5.5768,1794.3,1794.2,1.11496]
[1743372346986,1.45111,1794.3,1794.2,1.11496]
[1743372347287,7.02791,1794.3,1794.2,1.11496]
[1743372347495,7.02791,1794.3,1794.1,4.229]
[1743372347785,1.45111,1794.3,1794.2,1.11501]
[1743372348292,7.02791,1794.3,1794.2,1.11501]
[1743372348691,7.02791,1794.3,1793.8,54.7408]
[1743372348891,1.11508,1794.1,1793.5,0.5576]
[1743372349190,3.9172,1794.0,1793.7,1.11532]
[1743372349492,9.494,1794.0,1793.9,1.1152]
[1743372349695,5.5768,1793.9,1793.8,1.11521]
[1743372349892,8.7846,1793.9,1793.8,5.34121]
[1743372350097,7.02791,1793.9,1793.8,5.34121]
[1743372350592,5.5768,1793.9,1793.8,5.34121]
[1743372351794,7.02791,1793.9,1793.8,5.34121]
[1743372353093,7.02791,1793.9,1793.5,3.2078]
[1743372353298,3.2078,1793.7,1793.5,4.222]
[1743372353499,3.2078,1793.7,1793.6,1.11538]
[1743372353791,5.5768,1793.6,1793.5,4.222]
[1743372353988,7.02791,1793.6,1793.4,0.00835189]
[1743372354190,5.5768,1793.5,1793.4,1.12384189]
[1743372354391,5.5768,1793.5,1793.4,0.00835189]
[1743372354696,7.02791,1793.5,1793.4,1.12386189]
[1743372355890,5.5768,1793.5,1793.4,1.12386189]
[1743372356395,5.5768,1793.5,1793.4,1.68146189]
[1743372360095,10.23571,1793.5,1793.2,56.2646]
[1743372360301,7.0933,1793.4,1793.3,1.11557]
[1743372360498,7.0933,1793.4,1793.3,8.5117649]
[1743372360692,8.54441,1793.4,1793.3,8.5117649]
[1743372362194,8.54441,1793.4,1793.3,7.3961949]
[1743372362396,8.54441,1793.4,1793.3,5.31457]
[1743372362601,9.28221,1793.4,1793.3,5.31457]
[1743372363296,10.04181,1793.4,1793.3,4.199]
[1743372363699,10.04181,1793.4,1793.3,5.31457]
[1743372366202,1.5165,1793.4,1793.3,12.47917989]
[1743372369105,0.00835189,1793.5,1793.3,14.97917989]
[1743372369405,0.00835189,1793.5,1793.4,4.32331]
[1743372369805,0.00835189,1793.5,1793.4,11.65372412]
[1743372370607,7.03626189,1793.5,1793.4,8.49131]
[1743372370808,7.00626189,1793.5,1793.4,5.28351]
[1743372372912,1.47425189,1793.6,1793.5,1.11545]
[1743372373107,8.48051378,1793.6,1793.5,1.11545]
[1743372373309,1.47425189,1793.6,1793.5,4.32325]
[1743372373502,1.47425189,1793.6,1793.5,11.7051179]
[1743372373704,0.00835189,1793.6,1793.5,11.7051179]
[1743372375711,0.00835189,1793.6,1793.5,11.80753886]
[1743372375908,1.89e-06,1793.6,1793.5,20.36028853]
[1743372376207,0.7508,1794.4,1794.3,1.11495]
[1743372376511,3.2078,1794.6,1794.2,1.11501]
[1743372376512,1.4404,1794.3,1794.2,1.11501]
[1743372376711,1.4404,1794.3,1794.2,8.47281]
[1743372376912,1.4404,1794.3,1794.2,15.77779063]
[1743372377113,1.4404,1794.3,1794.2,12.56999063]
[1743372377510,1.4404,1794.3,1794.2,15.77779063]
[1743372380713,8.44666189,1794.3,1794.2,8.44881]
[1743372380918,9.87196189,1794.3,1794.2,8.44881]
[1743372381515,9.15676189,1794.3,1794.2,15.70336732]
[1743372385615,4.6505,1794.3,1793.6,3.7654]
[1743372385818,8.76295189,1794.2,1794.0,1.11508]
[1743372386014,1.4405,1794.1,1794.0,1.11508]
[1743372386215,6.99565189,1794.1,1793.9,1.11516]
[1743372386424,8.76295189,1794.0,1793.9,1.11516]
[1743372386621,10.20345189,1794.0,1793.9,1.11516]
[1743372387026,10.20345189,1794.0,1793.9,1.1152]
[1743372387418,10.20345189,1794.0,1793.8,1.12355189]
[1743372387619,5.55515189,1793.9,1793.7,4.113]
[1743372387921,5.55515189,1793.9,1793.7,4.08739]
[1743372388121,5.55515189,1793.8,1793.7,4.08739]
[1743372388327,5.55515189,1793.9,1793.7,4.08739]
[1743372388524,5.55515189,1793.9,1793.7,0.6902]
[1743372388728,8.76295189,1793.8,1793.7,0.6902]
[1743372389020,3.2078,1793.8,1793.3,0.5576]
[1743372389327,3.2078,1793.6,1793.3,4.6656]
[1743372389625,5.55515189,1793.5,1793.4,1.11551]
[1743372390819,6.25185189,1793.5,1793.4,1.11551]
[1743372392329,8.46305189,1793.5,1793.4,1.11551]
[1743372394824,10.96305189,1793.5,1793.3,1.12389189]
[1743372395124,8.76295189,1793.4,1793.3,1.12389189]
[1743372395332,10.13515189,1793.4,1793.3,1.12389189]
[1743372396324,1.3722,1793.4,1793.3,12.94337105]
[1743372396524,4.6149,1793.7,1793.6,1.11538]
[1743372396726,4.6149,1793.7,1793.6,5.20338]
[1743372396930,10.17005189,1793.7,1793.6,5.20338]
[1743372397428,6.96225189,1793.7,1793.6,1.11538]
[1743372397626,6.96225189,1793.7,1793.6,5.20138]
[1743372399128,5.5468,1793.6,1793.1,1.11566]
[1743372399334,3.2078,1793.2,1793.1,1.11569]
[1743372399531,3.2078,1793.4,1793.3,1.11553]
[1743372399832,9.6008,1793.4,1793.2,1.11559]
[1743372400031,6.3923,1793.3,1793.1,1.11565]
[1743372400221,3.2078,1793.2,1792.4,0.5584]
[1743372400533,3.2078,1792.8,1792.7,1.1159]
[1743372400832,3.2078,1792.8,1792.1,0.5584]
[1743372401030,3.2078,1792.2,1791.5,4.106]
[1743372401235,3.2078,1791.6,1791.2,1.11685]
[1743372401424,3.2078,1791.4,1791.3,22.36232686]
[1743372401730,1.11688,1791.2,1791.1,31.87025021]
[1743372401924,9.1778,1791.2,1791.1,30.28325021]
[1743372402233,11.6778,1791.2,1791.1,30.28325021]
[1743372403331,12.79468,1791.2,1791.1,30.28325021]
[1743372403522,11.6778,1791.2,1791.1,30.28325021]
[1743372404422,11.6778,1791.2,1790.7,1.4416]
[1743372404626,3.2078,1790.9,1790.7,1.4416]
[1743372404822,3.2078,1790.9,1790.8,1.11713]
[1743372405428,3.2078,1790.9,1790.7,1.4416]
[1743372405629,3.2078,1790.9,1790.7,8.14118]
[1743372405831,3.2078,1790.9,1790.8,1.11713]
[1743372406031,0.00837544,1791.0,1790.9,1.11706]
[1743372406227,1.4038,1791.5,1790.9,11.1827]
[1743372406228,3.2078,1791.3,1790.9,11.1827]
[1743372406530,3.2078,1791.3,1791.1,1.1169]
[1743372406731,3.2078,1791.3,1791.2,4.141]
[1743372407030,3.2078,1791.3,1791.2,10.84028]
[1743372407230,3.2078,1791.3,1791.2,9.7234]
[1743372407631,0.00837544,1791.4,1791.3,1.11682]
[1743372407828,3.2078,1792.0,1791.3,5.5824]
[1743372408024,1.11654,1791.8,1791.4,3.2078]
[1743372408230,1.11657,1791.7,1791.4,3.2078]
[1743372408430,3.2078,1791.7,1791.2,4.143]
[1743372408728,3.2078,1791.7,1791.3,1.1168]
[1743372408928,0.00837544,1791.6,1791.3,12.86346149]
[1743372409126,0.00837544,1791.6,1791.4,6.69913]
[1743372409330,0.00837544,1791.6,1791.5,1.11669]
[1743372409526,0.00837544,1791.6,1791.5,12.22779]
[1743372409727,3.9383,1792.3,1791.5,19.0010481]
[1743372409931,4.145,1792.5,1791.5,19.0010481]
[1743372409932,3.2078,1792.5,1791.8,3.2078]
[1743372410131,3.2078,1792.5,1792.0,1.11634]
[1743372410331,3.2078,1792.5,1792.1,1.3867]
[1743372410532,1.11625,1792.3,1792.1,1.3867]
[1743372410739,3.2078,1792.3,1791.7,4.149]
[1743372411036,0.009,1792.2,1792.0,0.00837544]
[1743372411235,4.32412,1792.1,1792.0,0.00837544]
[1743372411836,5.7078,1792.1,1791.3,56.82479]
[1743372412035,4.32433,1791.8,1791.6,1.4968]
[1743372412236,1.11657,1791.7,1791.6,1.4968]
[1743372412735,8.47,1791.7,1791.0,8.4768]
[1743372412936,3.2078,1791.5,1791.0,8.4808]
[1743372413140,3.21617544,1791.5,1791.2,0.00837544]
[1743372413539,3.21617544,1791.5,1791.2,7.08757544]
[1743372413840,5.97,1791.7,1791.6,1.11663]
[1743372414037,3.2078,1791.8,1791.6,9.7414]
[1743372414236,3.2078,1791.8,1791.7,5.5824]
[1743372414642,3.2078,1792.0,1791.7,5.5824]
[1743372414840,3.2078,1792.0,1791.7,6.69896]
[1743372415040,3.21617544,1792.0,1791.7,5.5824]
[1743372415238,3.21617544,1792.0,1791.7,6.69896]
[1743372415837,0.00837544,1792.0,1791.9,4.32424]
[1743372416031,3.2078,1792.4,1791.9,7.3658]
[1743372416236,3.2078,1792.4,1792.2,1.11623]
[1743372416543,0.7319,1792.6,1792.2,5.27623]
[1743372416544,3.9397,1792.6,1792.2,5.27623]
[1743372416744,5.05572,1792.6,1792.3,5.5824]
[1743372416948,1.84792,1792.6,1792.4,1.4168]
[1743372417243,4.32387,1792.5,1792.4,1.4168]
[1743372417436,3.2078,1792.5,1792.4,1.4168]
[1743372419146,3.2078,1792.5,1792.4,8.11533]
[1743372419843,0.00837544,1792.6,1792.5,1.11607]
[1743372420041,0.00837544,1792.6,1792.5,2.53157]
[1743372420441,0.00837544,1792.6,1792.5,1.4155]
[1743372420642,1.12438544,1792.6,1792.5,1.4155]
[1743372420942,0.00837544,1792.6,1792.5,1.4155]
[1743372421142,0.00837544,1792.6,1792.5,2.53157]
[1743372421443,1.12438544,1792.6,1792.5,1.4155]
[1743372421646,0.00837544,1792.6,1792.5,1.4155]
[1743372422151,1.12438544,1792.6,1792.5,1.4155]
[1743372422337,1.12438544,1792.6,1792.3,1.12452544]
[1743372422338,1.11613,1792.4,1792.3,0.00837544]
[1743372422646,4.32393,1792.4,1792.3,0.00837544]
[1743372423233,6.82393,1792.4,1792.3,0.00837544]